bitfinex/quotes_SOLUSD_20260304
["timestamp","ask_amount","ask_price","bid_price","bid_amount"]
[1772658042167,3.30467076,92.966,92.893,10.76507379]
[1772658042354,3.30467076,92.956,92.882,26.91582941]
[1772658042677,3.30467076,92.956,92.883,10.76623278]
[1772658043060,3.5889939,92.951,92.87,10.76773985]
[1772658043261,3.5889939,92.951,92.871,3.49756863]
[1772658043471,3.30467076,92.951,92.871,3.49756863]
[1772658043761,3.30467076,92.951,92.875,3.49756863]
[1772658045178,3.30467076,92.949,92.877,3.49756863]
[1772658046871,3.30467076,92.949,92.883,3.49756863]
[1772658047183,3.30467076,92.947,92.887,3.49756863]
[1772658049056,3.30467076,92.947,92.895,3.53662347]
[1772658049367,3.30467076,92.947,92.897,3.53662347]
[1772658049562,10.75893529,92.946,92.897,3.53662347]
[1772658049771,3.54308785,92.945,92.897,3.53662347]
[1772658051384,3.54308785,92.945,92.899,3.53662347]
[1772658052179,3.54308785,92.944,92.876,3.53662347]
[1772658053380,3.54308785,92.942,92.878,3.53662347]
[1772658054780,3.54308785,92.942,92.871,10.7675886]
[1772658054981,3.54308785,92.942,92.865,26.92073788]
[1772658054982,3.54308785,92.932,92.843,3.53662347]
[1772658055178,3.54308785,92.926,92.845,3.53662347]
[1772658055375,3.54308785,92.924,92.846,10.77052323]
[1772658055680,3.54308785,92.924,92.845,3.53662347]
[1772658056076,0.28432314,92.923,92.845,3.53662347]
[1772658056280,3.54308785,92.916,92.845,3.53662347]
[1772658056480,3.54308785,92.916,92.817,26.93466882]
[1772658056481,3.54308785,92.916,92.834,3.53662347]
[1772658056679,3.82741099,92.911,92.834,3.53662347]
[1772658056979,3.82741099,92.911,92.823,3.53662347]
[1772658057282,3.82741099,92.911,92.837,1e-08]
[1772658057470,3.82741099,92.909,92.837,1e-08]
[1772658057667,3.54308785,92.896,92.837,1e-08]
[1772658057984,3.54308785,92.886,92.837,1e-08]
[1772658058687,3.54308785,92.884,92.837,1e-08]
[1772658059789,3.54308785,92.881,92.837,1e-08]
[1772658060283,3.65158527,92.877,92.8,0.1]
[1772658060691,3.65158527,92.875,92.802,0.28432314]
[1772658062188,3.65158527,92.873,92.804,0.28432314]
[1772658062388,3.65158527,92.873,92.805,0.39406381]
[1772658062768,3.65158527,92.873,92.822,0.28432314]
[1772658062972,3.65158527,92.873,92.825,0.39406381]
[1772658063984,3.65158527,92.873,92.801,2.43413798]
[1772658064186,3.65158527,92.867,92.8,1e-08]
[1772658064384,166.89637348,92.872,92.749,0.41942742]
[1772658064385,0.14216157,92.852,92.749,0.41942742]
[1772658064567,0.28432314,92.862,92.747,0.34971422]
[1772658064568,3.65158527,92.831,92.747,0.34971422]
[1772658064767,3.65158527,92.831,92.707,0.41942742]
[1772658064768,3.65158527,92.81,92.707,0.41942742]
[1772658064981,3.65158527,92.796,92.721,10.78498371]
[1772658065180,3.65158527,92.796,92.728,10.78417563]
[1772658065386,3.65158527,92.796,92.718,0.41942742]
[1772658065589,3.65158527,92.796,92.72,10.78509326]
[1772658065783,3.65158527,92.796,92.718,0.41942742]
[1772658066294,3.65158527,92.794,92.719,10.78527594]
[1772658066589,3.65158527,92.794,92.679,44.23848214]
[1772658066590,3.65158527,92.786,92.707,11.22096779]
[1772658066782,3.65158527,92.786,92.712,10.78603123]
[1772658066976,3.65158527,92.786,92.718,11.21968399]
[1772658067288,3.65158527,92.786,92.718,0.43436563]
[1772658067594,3.65158527,92.776,92.692,11.33508152]
[1772658067776,3.65158527,92.776,92.693,0.54666397]
[1772658067976,3.65158527,92.776,92.695,0.54666397]
[1772658068494,3.60158527,92.78,92.716,0.55888863]
[1772658068815,43.10140442,92.805,92.697,37.75742472]
[1772658068816,3.60158527,92.806,92.742,0.55888863]
[1772658068971,10.77400448,92.816,92.762,0.55888863]
[1772658069177,3.60158527,92.815,92.766,0.57095036]
[1772658070292,10.77400448,92.816,92.766,0.57095036]
[1772658070479,10.77400448,92.816,92.741,1.07827174]
[1772658070480,10.77400448,92.816,92.768,0.58284012]
[1772658070876,21.51000403,92.817,92.768,0.58284012]
[1772658071791,21.51000403,92.817,92.774,0.59458806]
[1772658071980,3.60158527,92.838,92.779,0.14216157]
[1772658072179,3.60158527,92.838,92.775,0.28432314]
[1772658072180,14.37304132,92.838,92.775,0.28432314]
[1772658072380,3.60158527,92.838,92.78,0.28432314]
[1772658072676,10.77093279,92.843,92.78,0.28432314]
[1772658072677,3.89874834,92.864,92.788,0.28432314]
[1772658072876,3.89874834,92.864,92.784,5.10909883]
[1772658073179,3.89874834,92.864,92.785,0.02424842]
[1772658073586,3.89874834,92.864,92.796,0.02424842]
[1772658074597,3.89874834,92.862,92.797,0.28432314]
[1772658075382,37.68993032,92.863,92.778,1.76059746]
[1772658075383,3.89874834,92.858,92.778,1.76059746]
[1772658076181,3.89874834,92.856,92.734,0.05926664]
[1772658076505,64.59102197,92.893,92.734,0.05926664]
[1772658076506,3.89874834,92.837,92.734,0.05926664]
[1772658077390,3.89874834,92.837,92.735,3.69383402]
[1772658077597,3.89874834,92.837,92.741,0.07069879]
[1772658078594,104.9,92.84,92.741,0.07069879]
[1772658078595,3.89874834,92.835,92.741,0.07069879]
[1772658078997,3.89874834,92.829,92.741,0.07069879]
[1772658079185,3.89874834,92.829,92.739,10.78294999]
[1772658079385,0.28432314,92.822,92.737,0.86827143]
[1772658079593,3.89874834,92.819,92.737,0.76417441]
[1772658080493,3.89874834,92.817,92.738,0.28432314]
[1772658080794,220.86233271,92.818,92.737,0.76417441]
[1772658080795,3.89874834,92.814,92.737,0.76417441]
[1772658080997,3.89874834,92.814,92.738,0.28432314]
[1772658081379,3.89874834,92.808,92.737,0.76417441]
[1772658081583,3.89874834,92.798,92.737,1e-08]
[1772658082615,3.89874834,92.796,92.737,1e-08]
[1772658082900,3.89874834,92.795,92.737,1e-08]
[1772658083708,3.89874834,92.791,92.737,1e-08]
[1772658083999,3.89874834,92.791,92.739,0.15222732]
[1772658085004,3.89874834,92.789,92.74,10.78283372]
[1772658085585,3.89874834,92.789,92.737,1e-08]
[1772658085905,3.89874834,92.789,92.738,10.78306627]
[1772658086398,3.89874834,92.789,92.738,10.97605001]
[1772658086707,3.89874834,92.789,92.738,0.19298374]
[1772658086903,10.77725567,92.788,92.742,0.19298374]
[1772658087203,3.89874834,92.817,92.759,0.14216157]
[1772658087387,3.89874834,92.817,92.768,0.20287573]
[1772658087701,3.89874834,92.817,92.759,0.28432314]
[1772658087906,2.89874834,92.817,92.757,0.48719887]
[1772658088090,37.69886149,92.841,92.761,0.14216157]
[1772658088288,37.69886149,92.841,92.778,1.21338609]
[1772658088488,37.69886149,92.841,92.788,1.21338609]
[1772658089000,43.08441313,92.841,92.75,1.21338609]
[1772658089303,0.28432314,92.837,92.723,1.22380799]
[1772658089603,0.28432314,92.837,92.732,10.78368199]
[1772658089802,0.28432314,92.829,92.71,1.22380799]
[1772658089989,3.92004429,92.819,92.71,1.22380799]
[1772658090177,3.63572115,92.806,92.701,26.96824318]
[1772658090380,3.69383402,92.811,92.715,10.78564793]
[1772658090381,3.63572115,92.786,92.715,10.78564793]
[1772658090580,3.63572115,92.778,92.715,10.78564793]
[1772658090777,3.63572115,92.778,92.71,10.78626827]
[1772658091000,3.63572115,92.776,92.703,1.23410056]
[1772658092102,3.63572115,92.773,92.695,10.78795979]
[1772658092308,3.63572115,92.773,92.702,10.78725378]
[1772658092890,3.63572115,92.773,92.696,0.28432314]
[1772658093086,3.63572115,92.771,92.701,10.7873519]
[1772658093400,3.63572115,92.769,92.691,11.65542473]
[1772658094004,3.63572115,92.769,92.692,1.26470764]
[1772658094307,30.28432314,92.77,92.666,10.16665495]
[1772658094308,3.92004429,92.766,92.666,10.16665495]
[1772658094599,3.92004429,92.76,92.668,10.79116313]
[1772658094798,3.63572115,92.76,92.667,1.27452245]
[1772658094981,3.69383402,92.761,92.667,1.27452245]
[1772658094982,3.63572115,92.754,92.667,1.27452245]
[1772658095179,3.63572115,92.748,92.668,1.41668402]
[1772658095406,0.28432314,92.733,92.666,10.16665495]
[1772658095596,3.63572115,92.728,92.666,10.16665495]
[1772658096395,3.63572115,92.718,92.641,1.29392343]
[1772658097001,3.63572115,92.716,92.643,1.29392343]
[1772658097207,3.63572115,92.716,92.642,38.06416381]
[1772658097208,3.63572115,92.716,92.642,10.79424019]
[1772658097406,3.63572115,92.716,92.605,1.07985529]
[1772658097407,3.92004429,92.7,92.595,1.30347562]
[1772658097706,3.92004429,92.694,92.595,1.30347562]
[1772658097907,3.63572115,92.694,92.595,1.30347562]
[1772658098200,3.63572115,92.694,92.608,1.30783848]
[1772658098404,3.63572115,92.694,92.611,0.14216157]
[1772658098586,3.63572115,92.694,92.618,1.30783848]
[1772658099201,3.63572115,92.692,92.62,1.30783848]
[1772658099403,3.63572115,92.692,92.628,1.31216843]
[1772658099706,3.63572115,92.692,92.637,0.28432314]
[1772658100378,3.63572115,92.692,92.638,1.32147416]
[1772658101188,10.78853394,92.691,92.64,1.32147416]
[1772658101393,3.63572115,92.69,92.64,1.32147416]
[1772658102599,26.96800214,92.703,92.639,10.79458975]
[1772658102600,10.78792365,92.697,92.648,1.33925378]
[1772658102801,3.63572115,92.696,92.648,1.33925378]
[1772658104114,43.13673366,92.729,92.65,1.34772493]
[1772658104115,3.63572115,92.706,92.65,1.34772493]
[1772658105088,3.63572115,92.706,92.655,0.28432314]
[1772658105295,3.63572115,92.706,92.658,0.28432314]
[1772658105910,3.63572115,92.704,92.647,0.28432314]
[1772658106212,3.63572115,92.741,92.669,1.37776732]
[1772658106992,3.63572115,92.739,92.648,0.28432314]
[1772658107218,3.63572115,92.739,92.659,1.38577819]
[1772658108115,3.63572115,92.737,92.639,1.67010133]
[1772658108420,3.92004429,92.734,92.648,1.39372759]
[1772658110319,4.33982951,92.732,92.648,1.39372759]
[1772658111217,4.33982951,92.732,92.63,1.70902675]
[1772658111418,4.33982951,92.732,92.63,1.42470361]
[1772658111609,4.33982951,92.729,92.63,1.42470361]
[1772658111918,4.33982951,92.729,92.611,1.42470361]
[1772658112501,4.33982951,92.724,92.617,1.43221852]
[1772658113001,4.33982951,92.724,92.618,1.43221852]
[1772658114016,4.33982951,92.724,92.594,10.94199741]
[1772658114221,4.1148576,92.688,92.595,0.14216157]
[1772658114520,4.1148576,92.686,92.595,0.14216157]
[1772658114814,4.1148576,92.686,92.592,11.08439226]
[1772658115313,4.1148576,92.682,92.592,11.08439226]
[1772658115821,4.1148576,92.682,92.592,0.02435519]
[1772658116518,4.1148576,92.679,92.592,0.02435519]
[1772658116696,134.87559075,92.678,92.592,10.80006912]
[1772658116898,4.1148576,92.677,92.594,0.03266398]
[1772658117122,134.87559075,92.678,92.573,0.03266398]
[1772658117123,4.1148576,92.669,92.573,0.03266398]
[1772658118194,4.39918074,92.664,92.573,0.03266398]
[1772658118804,4.39918074,92.662,92.573,0.03266398]
[1772658119209,0.28432314,92.653,92.571,0.05185157]
[1772658119411,4.1148576,92.648,92.571,0.05185157]
[1772658120406,4.1148576,92.66,92.572,0.05979755]
[1772658120805,37.7712787,92.663,92.57,0.1]
[1772658120806,26.97948479,92.663,92.591,0.05979755]
[1772658121204,4.1148576,92.672,92.591,0.05979755]
[1772658121399,37.76720295,92.673,92.599,0.06769874]
[1772658121825,10.79062941,92.673,92.599,0.06769874]
[1772658122130,10.79062941,92.673,92.598,0.28432314]
[1772658122131,10.78958158,92.682,92.605,3.69383402]
[1772658122344,4.1148576,92.681,92.613,0.07550146]
[1772658122830,10.78981441,92.68,92.613,0.07550146]
[1772658123005,41.87920804,92.68,92.613,0.07550146]
[1772658123206,4.1148576,92.679,92.613,0.07550146]
[1772658124925,4.1148576,92.689,92.617,0.09110771]
[1772658125526,3.9014476,92.689,92.63,0.14216157]
[1772658125710,3.9014476,92.689,92.632,0.28432314]
[1772658126027,3.9014476,92.689,92.634,0.28432314]
[1772658126219,3.9014476,92.689,92.638,0.31198973]
[1772658127317,26.95970063,92.731,92.645,0.28432314]
[1772658127623,26.95970063,92.731,92.639,91.75401287]
[1772658127624,4.05550637,92.73,92.648,0.32703255]
[1772658129611,4.05550637,92.728,92.656,0.28432314]
[1772658129817,4.05550637,92.728,92.658,0.28432314]
[1772658130230,4.05550637,92.728,92.659,0.33677363]
[1772658130925,4.05550637,92.726,92.66,10.79214331]
[1772658131122,4.05550637,92.726,92.649,26.98356161]
[1772658131321,37.74520905,92.727,92.506,0.86056039]
[1772658131322,4.33982951,92.723,92.617,10.79715387]
[1772658131928,4.33982951,92.723,92.618,0.35660102]
[1772658132806,4.33982951,92.718,92.624,0.3636699]
[1772658133027,4.33982951,92.718,92.628,0.3636699]
[1772658133420,4.05550637,92.718,92.628,0.3636699]
[1772658133637,4.05550637,92.718,92.619,92.05814923]
[1772658133638,4.05550637,92.718,92.64,0.3706785]
[1772658133821,4.05550637,92.718,92.639,0.28432314]
[1772658133822,4.05550637,92.718,92.648,0.3706785]
[1772658135327,4.05550637,92.716,92.651,0.14216157]
[1772658135531,4.05550637,92.716,92.654,0.38447017]
[1772658136831,4.05550637,92.716,92.656,0.39125878]
[1772658137134,4.05550637,92.714,92.658,0.39125878]
[1772658137734,4.05550637,92.714,92.628,43.18327364]
[1772658137735,4.05550637,92.714,92.624,0.40327534]
[1772658137928,4.05550637,92.714,92.623,37.78759055]
[1772658137929,4.05550637,92.714,92.641,0.40327534]
[1772658138132,4.05550637,92.714,92.623,37.78759055]
[1772658138133,4.05550637,92.714,92.627,0.40327534]
[1772658138333,4.33982951,92.711,92.627,0.40327534]
[1772658138523,4.33982951,92.711,92.616,0.41132381]
[1772658138524,0.28432314,92.7,92.616,0.41132381]
[1772658138839,0.28432314,92.698,92.612,10.79773679]
[1772658139020,275.03640187,92.715,92.604,0.41132381]
[1772658139021,4.19463209,92.689,92.604,0.41132381]
[1772658139223,4.19463209,92.687,92.606,0.28432314]
[1772658139529,4.19463209,92.687,92.605,10.79855299]
[1772658139836,4.19463209,92.687,92.604,0.41132381]
[1772658139837,4.19463209,92.684,92.59,0.41783004]
[1772658140030,4.19463209,92.684,92.609,0.28432314]
[1772658140234,4.19463209,92.684,92.625,0.28432314]
[1772658140750,4.19463209,92.684,92.628,0.42423591]
[1772658141247,4.19463209,92.682,92.63,0.43052215]
[1772658143441,4.19463209,92.695,92.638,0.44823473]
[1772658143823,4.19463209,92.695,92.646,0.44823473]
[1772658144154,4.19463209,92.695,92.647,0.28432314]
[1772658146545,10.78818478,92.694,92.648,10.79354114]
[1772658146756,4.14331598,92.727,92.667,0.46718798]
[1772658146958,4.14331598,92.727,92.668,0.46718798]
[1772658147453,4.14331598,92.727,92.671,0.28432314]
[1772658147654,4.14331598,92.727,92.678,0.47304685]
[1772658147949,10.78422914,92.728,92.678,0.47304685]
[1772658148427,4.14331598,92.727,92.678,0.47304685]
[1772658148622,4.14331598,92.725,92.68,0.28432314]
[1772658149146,4.14331598,92.725,92.68,0.76310442]
[1772658149378,4.14331598,92.725,92.669,0.479349]
[1772658149650,4.14331598,92.725,92.61,43.1918484]
[1772658149651,4.14331598,92.725,92.657,0.479349]
[1772658149950,4.14331598,92.725,92.658,0.28432314]
[1772658150129,4.14331598,92.725,92.657,0.479349]
[1772658150526,4.14331598,92.725,92.659,0.49032808]
[1772658150935,4.14331598,92.723,92.661,0.49032808]
[1772658151635,4.14331598,92.723,92.677,0.49587509]
[1772658151841,4.14331598,92.723,92.679,0.49587509]
[1772658153245,4.14331598,92.723,92.681,0.50131493]
[1772658153729,10.78492698,92.722,92.681,0.50131493]
[1772658154744,4.14331598,92.721,92.68,37.76435044]
[1772658155329,4.14331598,92.719,92.637,0.5226503]
[1772658155539,4.14331598,92.719,92.607,43.19302216]
[1772658155540,4.14331598,92.719,92.638,10.79470627]
[1772658155731,34.14331598,92.678,92.638,10.79470627]
[1772658155945,30.0,92.678,92.646,0.28432314]
[1772658156250,30.0,92.678,92.645,0.5226503]
[1772658156651,30.0,92.678,92.646,0.28432314]
[1772658158230,10.79016368,92.677,92.645,0.28432314]
[1772658158425,30.0,92.673,92.645,0.28432314]
[1772658158877,4.14331598,92.672,92.618,4.18695883]
[1772658159033,4.14331598,92.672,92.621,4.18695883]
[1772658159445,30.0,92.669,92.621,4.18695883]
[1772658160351,30.0,92.669,92.625,4.18695883]
[1772658160532,30.0,92.669,92.627,4.18695883]
[1772658160734,30.0,92.669,92.63,0.28432314]
[1772658161026,30.0,92.669,92.645,4.18695883]
[1772658162454,30.0,92.669,92.647,4.18695883]
[1772658163133,18.57902785,92.669,92.647,4.18695883]
[1772658164546,18.57902785,92.669,92.648,37.777394]
[1772658165554,4.14331598,92.694,92.649,0.28432314]
[1772658166750,4.28779107,92.693,92.651,0.28432314]
[1772658168243,4.28779107,92.692,92.651,0.28432314]
[1772658168832,10.78853394,92.691,92.652,10.79307516]
[1772658169157,4.28779107,92.69,92.653,0.28432314]
[1772658170255,4.28779107,92.69,92.654,0.02850079]
[1772658170840,4.28779107,92.69,92.652,10.79307516]
[1772658171154,4.28779107,92.688,92.647,10.7936083]
[1772658171950,43.12432566,92.756,92.647,10.7936083]
[1772658171951,4.28779107,92.722,92.65,3.69383402]
[1772658172158,104.9,92.75,92.647,10.7936083]
[1772658172159,4.28779107,92.72,92.659,5.10909883]
[1772658172460,4.28779107,92.72,92.659,0.28432314]
[1772658172640,4.28779107,92.72,92.66,0.03827141]
[1772658173342,4.28779107,92.72,92.662,0.04145352]
[1772658173545,4.28779107,92.719,92.662,0.04145352]
[1772658174082,3.69383402,92.77,92.661,0.28432314]
[1772658174083,4.28779107,92.753,92.665,0.04145352]
[1772658175249,4.28779107,92.751,92.67,0.04776162]
[1772658175763,4.28779107,92.751,92.666,0.28432314]
[1772658177063,4.28779107,92.745,92.665,37.77046348]
[1772658177247,4.28779107,92.743,92.65,0.05085655]
[1772658177441,4.28779107,92.743,92.639,91.75401287]
[1772658177442,4.28779107,92.735,92.642,3.69383402]
[1772658177648,4.28779107,92.735,92.639,37.78106412]
[1772658177853,4.28779107,92.735,92.64,0.28432314]
[1772658178157,4.28779107,92.715,92.639,10.79458975]
[1772658179452,274.95040108,92.744,92.624,0.06010049]
[1772658179453,4.57211421,92.713,92.624,0.06010049]
[1772658179964,4.28779107,92.713,92.624,0.06010049]
[1772658180353,4.28779107,92.713,92.665,10.37646523]
[1772658180554,37.75050153,92.714,92.624,0.06010049]
[1772658180555,0.28432314,92.706,92.624,0.06010049]
[1772658180748,3.88847707,92.705,92.624,0.06010049]
[1772658180949,3.88847707,92.705,92.622,3.96940971]
[1772658181166,3.88847707,92.705,92.624,3.96940971]
[1772658181389,3.88847707,92.703,92.626,3.96940971]
[1772658181756,3.88847707,92.669,92.595,3.96940971]
[1772658182061,3.88847707,92.665,92.595,3.96940971]
[1772658182766,3.88847707,92.661,92.595,3.96940971]
[1772658183573,3.88847707,92.659,92.597,3.96940971]
[1772658183872,3.88847707,92.655,92.597,3.96940971]
[1772658184244,3.88847707,92.655,92.603,3.96940971]
[1772658184446,3.88847707,92.655,92.605,3.96940971]
[1772658184966,3.69383402,92.69,92.596,37.798609]
[1772658184967,3.88847707,92.667,92.627,3.96940971]
[1772658185267,3.88847707,92.667,92.634,3.96940971]
[1772658185465,3.88847707,92.677,92.635,37.78269552]
[1772658185666,3.88847707,92.677,92.636,3.96940971]
[1772658187169,3.88847707,92.718,92.64,3.96940971]
[1772658187351,3.88847707,92.718,92.644,3.96940971]
[1772658187549,3.88847707,92.716,92.646,3.96940971]
[1772658188068,3.88847707,92.716,92.654,3.96940971]
[1772658189367,3.88847707,92.749,92.663,0.28432314]
[1772658189561,3.88847707,92.748,92.684,3.96940971]
[1772658189868,3.88847707,92.748,92.694,3.96940971]
[1772658190274,3.88847707,92.763,92.701,3.96940971]
[1772658190457,3.88847707,92.763,92.715,3.96940971]
[1772658193275,3.88847707,92.765,92.717,3.96940971]
[1772658193478,10.77911621,92.772,92.717,3.96940971]
[1772658193479,3.88847707,92.763,92.717,3.96940971]
[1772658194466,3.88847707,92.763,92.716,10.78562491]
[1772658195376,3.88847707,92.761,92.705,26.96704344]
[1772658195758,3.88847707,92.761,92.706,3.96940971]
[1772658197372,3.88847707,92.761,92.697,10.78783563]
[1772658197577,3.88847707,92.759,92.685,3.96940971]
[1772658199560,4.28017715,92.757,92.686,10.78911593]
[1772658199767,4.28017715,92.757,92.675,10.79039654]
[1772658200059,4.28017715,92.754,92.675,10.79039654]
[1772658200676,4.28017715,92.754,92.665,10.79156099]
[1772658201560,4.28017715,92.754,92.666,4.3661676]
[1772658201758,4.28017715,92.749,92.668,4.3661676]
[1772658203081,3.99585401,92.749,92.67,4.3661676]
[1772658203281,3.99585401,92.749,92.674,4.3661676]
[1772658203917,3.99585401,92.747,92.676,4.65049074]
[1772658204882,3.99585401,92.747,92.675,91.71837063]
[1772658204883,3.99585401,92.747,92.679,4.65049074]
[1772658207494,4.32928095,92.745,92.681,4.5554192]
[1772658210187,4.32928095,92.743,92.683,4.27109606]
[1772658211080,4.32928095,92.743,92.648,43.17385146]
[1772658211081,4.32928095,92.737,92.635,4.27109606]
[1772658211385,4.32928095,92.725,92.64,4.27109606]
[1772658211590,4.32928095,92.725,92.644,4.27109606]
[1772658212171,4.32928095,92.714,92.646,4.27109606]
[1772658213289,4.32928095,92.704,92.636,10.79493933]
[1772658213483,4.32928095,92.698,92.636,10.79493933]
[1772658213678,4.32928095,92.694,92.636,10.79493933]
[1772658214592,4.32928095,92.692,92.625,15.06731738]
[1772658214779,4.32928095,92.692,92.625,42.05787068]
[1772658215694,4.32928095,92.69,92.626,4.27109606]
[1772658216201,4.32928095,92.69,92.629,4.5554192]
[1772658216801,15.11816408,92.688,92.631,4.5554192]
[1772658217676,42.09037191,92.688,92.631,4.27109606]
[1772658218793,4.32928095,92.687,92.633,4.27109606]
[1772658219704,4.32928095,92.697,92.64,0.28432314]
[1772658219870,4.32928095,92.697,92.645,4.27109606]
[1772658221391,4.32928095,92.695,92.647,4.27109606]
[1772658223795,4.32928095,92.695,92.649,4.27109606]
[1772658224092,4.32928095,92.693,92.649,4.27109606]
[1772658224997,4.32928095,92.703,92.649,4.27109606]
[1772658225196,4.32928095,92.701,92.649,4.27109606]
[1772658226191,4.32928095,92.701,92.655,4.27109606]
[1772658226390,4.32928095,92.716,92.657,4.27109606]
[1772658226582,4.32928095,92.716,92.653,3.69383402]
[1772658226583,4.32928095,92.716,92.665,4.27109606]
[1772658226898,4.32928095,92.733,92.681,4.27109606]
[1772658227104,4.32928095,92.733,92.685,4.27109606]
[1772658228802,4.32928095,92.733,92.687,4.13002735]
[1772658229788,4.19214974,92.731,92.689,4.13002735]
[1772658232111,4.19214974,92.731,92.669,43.16399477]
[1772658232112,4.19214974,92.731,92.691,4.13002735]
[1772658233510,26.95557049,92.746,92.69,37.76027617]
[1772658233511,4.19214974,92.729,92.69,37.76027617]
[1772658233717,4.19214974,92.725,92.599,4.13002735]
[1772658234004,10.78399654,92.73,92.593,10.79995248]
[1772658234005,0.14216157,92.687,92.593,10.79995248]
[1772658234207,4.19214974,92.67,92.594,4.13002735]
[1772658235206,4.19214974,92.657,92.594,4.13002735]
[1772658235585,4.19214974,92.657,92.604,4.13002735]
[1772658236207,30.0,92.651,92.606,4.13002735]
[1772658236410,34.19214974,92.651,92.606,4.13002735]
[1772658237805,34.19214974,92.651,92.608,4.13002735]
[1772658238004,30.0,92.651,92.608,4.13002735]
[1772658238193,4.19214974,92.65,92.608,4.13002735]
[1772658238399,30.0,92.648,92.608,4.13002735]
[1772658238897,4.19214974,92.647,92.608,4.13002735]
[1772658239297,30.0,92.644,92.608,4.13002735]
[1772658240017,30.0,92.644,92.609,37.79330301]
[1772658240928,30.0,92.644,92.61,4.13002735]
[1772658241284,4.19214974,92.643,92.61,4.13002735]
[1772658241488,30.0,92.642,92.61,4.13002735]
[1772658241684,4.19214974,92.641,92.609,37.79330301]
[1772658241891,4.19214974,92.641,92.609,41.92333036]
[1772658242096,86.27341998,92.729,92.609,41.92333036]
[1772658242097,4.19214974,92.669,92.621,0.85869544]
[1772658242303,4.19214974,92.669,92.611,0.14216157]
[1772658242304,4.19214974,92.669,92.625,0.85869544]
[1772658244190,4.19214974,92.669,92.627,0.86389977]
[1772658244917,4.19214974,92.667,92.603,37.79575175]
[1772658245293,4.19214974,92.667,92.604,0.86981058]
[1772658245812,4.19214974,92.667,92.603,37.79575175]
[1772658246314,4.19214974,92.665,92.594,0.14216157]
[1772658247614,4.19214974,92.663,92.594,0.87039557]
[1772658251004,4.19214974,92.661,92.595,37.79901721]
[1772658251515,4.19214974,92.661,92.596,0.86138061]
[1772658251716,4.19214974,92.661,92.61,0.86138061]
[1772658251917,4.19214974,92.661,92.614,0.86138061]
[1772658253221,104.9,92.69,92.627,4.13002735]
[1772658253222,10.78876673,92.689,92.627,4.13002735]
[1772658253402,37.76068357,92.689,92.627,4.13002735]
[1772658254012,10.78748651,92.7,92.632,0.28432314]
[1772658254197,10.78748651,92.7,92.635,4.13002735]
[1772658254516,37.75620279,92.7,92.635,4.13002735]
[1772658254721,10.78748651,92.7,92.635,4.13002735]
[1772658255120,4.19214974,92.697,92.637,4.13002735]
[1772658257603,4.19214974,92.695,92.639,4.13002735]
[1772658259806,4.40922138,92.693,92.641,4.41471053]
[1772658261519,4.40922138,92.693,92.63,4.41471053]
[1772658261714,4.40922138,92.693,92.63,15.21033648]
[1772658262013,43.15151658,92.697,92.612,4.41471053]
[1772658262014,4.40922138,92.691,92.612,4.41471053]
[1772658262213,4.40922138,92.687,92.614,4.41471053]
[1772658262413,4.40922138,92.683,92.605,4.41471053]
[1772658267321,4.36883144,92.681,92.607,3.97837231]
[1772658267522,4.36883144,92.681,92.608,0.28432314]
[1772658267835,4.36883144,92.681,92.615,3.97837231]
[1772658270618,4.36883144,92.679,92.617,3.97837231]
[1772658270928,4.36883144,92.679,92.611,3.97837231]
[1772658271450,4.36883144,92.665,92.592,3.97837231]
[1772658271919,4.36883144,92.663,92.592,3.97837231]
[1772658272306,4.36883144,92.663,92.594,3.97837231]
[1772658273009,30.0,92.641,92.594,3.97837231]
[1772658273215,4.36883144,92.64,92.594,3.97837231]
[1772658273924,4.36883144,92.638,92.595,10.7997192]
[1772658274125,4.36883144,92.638,92.594,14.77812997]
[1772658274329,4.36883144,92.638,92.595,3.97837231]
[1772658275412,4.36883144,92.636,92.597,3.97837231]
[1772658276839,4.04521679,92.634,92.599,4.21060292]
[1772658278516,4.04521679,92.634,92.572,4.21060292]
[1772658278719,4.04521679,92.632,92.574,4.21060292]
[1772658280939,4.04521679,92.63,92.576,4.21060292]
[1772658281534,4.04521679,92.663,92.579,4.49492606]
[1772658281736,4.04521679,92.663,92.589,0.28432314]
[1772658281940,4.04521679,92.663,92.605,0.14216157]
[1772658282241,4.04521679,92.689,92.624,4.21060292]
[1772658282552,4.04521679,92.689,92.599,4.49492606]
[1772658283243,4.04521679,92.687,92.615,4.21060292]
[1772658285342,4.04521679,92.685,92.625,4.21060292]
[1772658286421,43.13228647,92.738,92.629,4.21060292]
[1772658286422,4.04521679,92.705,92.629,4.21060292]
[1772658286755,4.04521679,92.705,92.655,4.21060292]
[1772658287724,4.04521679,92.703,92.657,4.21060292]
[1772658288847,3.9395037,92.709,92.665,3.92174084]
[1772658290645,3.9395037,92.707,92.667,3.92174084]
[1772658291636,3.9395037,92.707,92.648,3.92174084]
[1772658291823,3.9395037,92.707,92.644,0.32443737]
[1772658292230,3.9395037,92.707,92.599,43.19681064]
[1772658292231,0.14216157,92.7,92.626,10.79599889]
[1772658292432,124.0453898,92.708,92.608,3.92174084]
[1772658292433,0.28432314,92.678,92.608,3.92174084]
[1772658292631,3.9395037,92.673,92.613,10.7976202]